Cogmind - Beta 17.1 @@@ ROGUE MODE // 2026.09.01 @ 02:27:58 Player: +Jones Result: Self-destructed Performance ------------- Evolutions (0) 0 Regions Visited (3) 600 Robots Destroyed (61) 305 Value Destroyed (1234) 1234 Prototype IDs (17) 340 Alien Tech Used (0) 0 Bonus (7969) 7969 TOTAL SCORE: 10448 Bonus ------- Prayed to X0-1V1 5000 Major X0-1V1 Interference 3000 Friendly Fire -31 Cogmind --------- Core Integrity 157/190 Matter 213/900 Energy 1300/1300 System Corruption 0% Temperature Cool (0) Movement Rolling (110) Ox2 Location -7/Recycling Parts ------- > --- POWER (2) -------- (None) > --- PROPULSION (1) --- Wheel > --- UTILITY (2) ------ Large Storage Unit Hardened Light Armor Plating (fused) > --- WEAPON (2) ------- Shotgun (fused) Mini Grenade Launcher > --- INVENTORY (15) --- Light Treads Spiked Treads Wheel Maxwheels Makeshift Light Armor Plating Shotgun Battle Rifle Barrage Gun Heavy Battle Rifle Battle Cannon Rocket Launcher Peak State ------------ > --- POWER ------------ (None) > --- PROPULSION ------- Wheel > --- UTILITY ---------- Large Storage Unit Hardened Light Armor Plating Makeshift Light Armor Plating > --- WEAPON ----------- Shotgun Shotgun Battle Rifle Battle Cannon > --- INVENTORY -------- Light Treads Spiked Treads Wheel Wheel Maxwheels X0-1V1's Piety Tracker Barrage Gun Heavy Battle Rifle Battle Cannon Rocket Launcher Mini Grenade Launcher Subdweller Shrapnel Launcher [Rating: 22] Favorites ----------- Power Light Ion Engine Engine Light Ion Engine Propulsion Light Treads Treads Light Treads Wheel Wheel Utility Large Storage Unit Device Seismic Detector Storage Large Storage Unit Protection Light Armor Plating Weapon Assault Rifle Energy Gun Subdweller Laser Energy Cannon Subdweller Beam Cannon Ballistic Gun Assault Rifle Ballistic Cannon Battle Cannon Launcher Mini Grenade Launcher Special Weapon Mining Laser Build | -11 -10 -10 -7 ------- Run | Yrd Mat Sub Rec Slots Evolved . | . . . . Power . | . . . . Propulsion . | . . . . Utility . | . . . . Weapon . | . . . . Parts Attached 31 | 8 5 18 . Power 1 | 1 . . . Engine 1 | 1 . . . Core . | . . . . Reactor . | . . . . Propulsion 7 | 2 . 5 . Treads 5 | 2 . 3 . Leg . | . . . . Wheel 2 | . . 2 . Hover . | . . . . Flight . | . . . . Utility 8 | 3 1 4 . Device 2 | 2 . . . Storage 3 | 1 1 1 . Processor . | . . . . Hackware . | . . . . Protection 3 | . . 3 . Artifact . | . . . . Weapon 15 | 2 4 9 . Energy Gun 3 | . 2 1 . Energy Cannon 1 | . . 1 . Ballistic Gun 6 | 2 1 3 . Ballistic Cannon 1 | . . 1 . Launcher 3 | . . 3 . Special Weapon 1 | . 1 . . Impact Weapon . | . . . . Slashing Weapon . | . . . . Piercing Weapon . | . . . . Special Melee Weapon . | . . . . Unidentified Prototypes 1 | . 1 . . Parts Lost 7 | . . 7 . Power 1 | . . 1 . Propulsion 4 | . . 4 . Utility 2 | . . 2 . Weapon . | . . . . Highest Loss Streak 1 | . . 1 . To Critical Strikes . | . . . . Average Backups 10 | . 5 13 . Power . | . . . . Propulsion 2 | . . 3 . Utility 1 | . . 1 . Weapon 6 | . 4 8 . Tool/Special . | . . . . Unused Backups 17 | . 1 9 7 Power . | . . . . Propulsion 5 | . . 2 3 Utility 5 | . . 5 . Weapon 7 | . 1 2 4 Tool/Special . | . . . . Average Slot Usage (%) 94 | . 98 92 . Engine 10 | . 14 8 . Treads 24 | . 27 22 . Wheel 1 | . . 1 . Device 5 | . 13 . . Storage 14 | . 14 14 . Protection 8 | . . 13 . Energy Cannon 1 | . . 2 . Ballistic Gun 24 | . 26 22 . Peak Build Rating 22 | 7 10 22 . Average Rating 11 | 5 7 13 . On Entrance 7 | . 7 10 13 Avg Prop Armor Cover (%) . | . . . . Naked Turns . | . . . . Heaviest Build 44 | 12 29 44 . Greatest Support 40 | 40 40 40 . Greatest Overweight (x) 3 | . 1 3 . Average Overweight (x) . | . . . . Largest Inventory Capacity 15 | 8 15 15 . Average Capacity 14 | 7 13 15 . Most Carried 15 | 1 13 15 . Average Carried 10 | . 5 13 . Final Capacity 15 | 8 15 15 15 Final Carried 14 | 1 13 14 14 Class Distribution -------------------- 88% | Mutant 6% | Tank 4% | Derelict-Tank Dominant Class ---------------- Mutant | -10/Materials Mutant | -10/Subcaves Mutant | -7/Recycling Resources | -11 -10 -10 -7 ----------- Run | Yrd Mat Sub Rec Matter Collected 1574 | 326 422 826 . Remotely 116 | 116 . . . Salvage Created 1345 | 167 393 785 . Parts 90 | 14 22 54 . Haulers Intercepted 2 | . 2 . . Recyclers Shooed 1 | 1 . . . Parts Field Recycled . | . . . . Retrieved Matter . | . . . . Parts Self-Destructed 29 | . . 29 . Prevented . | . . . . Parts Restored . | . . . . Kills | -11 -10 -10 -7 ------- Run | Yrd Mat Sub Rec Combat Hostiles Destroyed 46 | . 9 37 . Guns 15 | . 9 6 . Cannons 3 | . . 3 . AOE 28 | . . 28 . Classes Destroyed 13 | 3 6 4 . Worker 2 | 1 1 . . Builder 1 | . 1 . . Tunneler 5 | 5 . . . Hauler 2 | . 2 . . Recycler 1 | 1 . . . Mechanic 1 | . 1 . . Turret 1 | . . 1 . Watcher 2 | . 2 . . Swarmer 23 | . 6 17 . Grunt 8 | . 3 5 . Sentry 1 | . . 1 . Subdweller 14 | . . 14 . Scientist 1 | . . 1 . Best Kill Streak 6 | 5 6 5 . Combat Bots Only 5 | . 5 5 . Max Kills in Single Turn 5 | 1 2 5 . Gunslinging 1 | . 1 . . Exploded 5 | . . 5 . Melee . | . . . . Uniques/NPCs Destroyed . | . . . . Combat | -11 -10 -10 -7 -------- Run | Yrd Mat Sub Rec Hostile Shots Fired 112 | . 29 83 . Missed 37 | . 13 24 . Hits 75 | . 16 59 . Projectile 75 | . 16 59 . AOE 3 | . . 3 . Part Disruptions 1 | . 1 . . Damage Taken 1219 | . 152 1067 . Core 89 | . 16 73 . Absorbed by Shields . | . . . . Core Remaining (%) 100 | 100 . . . Volleys Fired 138 | 12 46 80 . Largest 2 | 2 2 2 . Hottest 113 | 40 100 113 . Shots Fired 218 | 24 86 108 . Gun 141 | 24 80 37 . Cannon 37 | . . 37 . Launcher 23 | . . 23 . Special 17 | . 6 11 . Kinetic 154 | 24 77 53 . Thermal 48 | . 9 39 . Explosive 16 | . . 16 . Electromagnetic . | . . . . Robot Hit Streak 11 | 6 8 11 . Robot Miss Streak 4 | 2 4 1 . Penetration Max . | . . . . Secondary Targets 2 | . 2 . . Max Gunslinging Chain 1 | . 1 . . Shots Hit Robots 89 | 14 41 34 . Core Hits 77 | 8 20 49 . Critical Kills 1 | 1 . . . Critical Parts Destroyed 1 | . 1 . . Critical Strikes 2 | 1 1 . . Destroy 2 | 1 1 . . Melee Attacks . | . . . . Impact . | . . . . Slashing . | . . . . Piercing . | . . . . Sneak Attacks . | . . . . Combat Hostiles . | . . . . Follow-up Attacks . | . . . . Damage Inflicted 3575 | 166 660 2749 . Guns 1034 | 160 633 241 . Cannons 272 | . . 272 . Explosions 2236 | . . 2236 . Melee . | . . . . Ramming 33 | 6 27 . . Kinetic 1833 | 160 598 1075 . Thermal 253 | . 35 218 . Explosive 1456 | . . 1456 . Electromagnetic . | . . . . Impact . | . . . . Slashing . | . . . . Piercing . | . . . . Highest Corruption 14 | . . 14 . Average Corruption 5 | . . 5 . Corruption Purged . | . . . . Corruption Blocked . | . . . . Overload Shots . | . . . . Overflow Damage 29 | . . 29 . Projectiles . | . . . . Explosions 29 | . . 29 . Melee . | . . . . Knockbacks 1 | . . 1 . Impact . | . . . . Kinetic 1 | . . 1 . Secondary . | . . . . Self-Inflicted Damage 128 | . . 128 . Shots 4 | . . 4 . Rammed 8 | 1 7 . . Targets Rammed 9 | 2 7 . . Kicked . | . . . . Crushed 1 | 1 . . . Highest Temperature 171 | . 63 171 . Average Temperature 29 | . 27 31 . Received Heat Transfer 219 | . 18 201 . Siege Activations . | . . . . Martial Activations . | . . . . Shielding Activations . | . . . . Robots Disrupted . | . . . . Combat Hostiles . | . . . . Robots Corrupted . | . . . . Combat Hostiles . | . . . . Parts Fried . | . . . . Impact Corruptions . | . . . . Robots Melted . | . . . . Combat Hostiles . | . . . . Parts Melted 4 | . . 4 . Heat Transferred 370 | . 74 296 . Parts Sabotaged . | . . . . Parts Stolen . | . . . . Parts Stripped . | . . . . Power Chain Reactions . | . . . . Alert | -11 -10 -10 -7 ------- Run | Yrd Mat Sub Rec Maximum Alert Level . | . . . . Low Security (%) 100 | 100 100 . . Level 1 . | . . . . Level 2 . | . . . . Level 3 . | . . . . Level 4 . | . . . . Level 5 . | . . . . High Security . | . . . . Max Security . | . . . . Peak Influence 160 | 20 160 . . Initial 79 | . . . 79 Average 38 | 3 42 . . Influence Increases 826 | 35 286 505 . Destroy 0b10 Robot/C 660 | . 180 480 . Destroy 0b10 Robot/NC 70 | 35 35 . . Destroy Leader 58 | . 48 10 . Successful Hack 18 | . 18 . . Destroy Structure 5 | . 5 . . Lose Combat Pursuer 15 | . . 15 . Influence Decreases 747 | 35 258 366 88 Entered New Map 102 | . . 14 88 Time Decay 605 | 35 258 312 . Lost Part 40 | . . 40 . Squads Dispatched 2 | . 2 . . Investigation . | . . . . Extermination . | . . . . Reinforcement 2 | . 2 . . Assault . | . . . . Garrison . | . . . . Intercept . | . . . . Searches Triggered . | . . . . Construction Impeded . | . . . . Haulers Reinforced . | . . . . Active Scanning Responses . | . . . . Cargo Convoy Interrupts . | . . . . Stealth | -11 -10 -10 -7 --------- Run | Yrd Mat Sub Rec Distress Signals 1 | . 1 . . Communications Jammed . | . . . . Distress Signals . | . . . . Times Spotted 56 | . 18 38 . Peak Tracking Total 7 | . 5 7 . Tactical Retreats 1 | . . 1 . Traps | -11 -10 -10 -7 ------- Run | Yrd Mat Sub Rec Traps Triggered 8 | . 7 1 . Indirectly . | . . . . Trap Hack Attempts . | . . . . Triggered . | . . . . Disarmed . | . . . . Reprogrammed . | . . . . Reused . | . . . . Traps Extracted . | . . . . Installed . | . . . . Triggered . | . . . . Machines | -11 -10 -10 -7 ---------- Run | Yrd Mat Sub Rec Machines Disabled 4 | . . 4 . Max in Single Turn 2 | . . 2 . Machines Repaired . | . . . . Machines Dismantled . | . . . . Machines Sabotaged . | . . . . Overloaded Fab Kills . | . . . . Hacking | -11 -10 -10 -7 --------- Run | Yrd Mat Sub Rec Machines Accessed 9 | . 8 1 . Terminals 6 | . 6 . . Fabricators . | . . . . Repair Stations 1 | . 1 . . Recycling Units 1 | . 1 . . Scanalyzers . | . . . . Garrison Access . | . . . . Total Hacks 23 | . 22 1 . Successful 10 | . 9 1 . Failed 13 | . 13 . . Catastrophic 1 | . 1 . . Database Lockouts . | . . . . Manual 14 | . 14 . . Terminals 18 | . 18 . . Fabricators . | . . . . Repair Stations 2 | . 2 . . Recycling Units 2 | . 2 . . Scanalyzers . | . . . . Garrison Access . | . . . . Terminal Hacks 3 | . 2 1 . Prototype ID Bank 1 | . 1 . . Locate Traps 1 | . 1 . . Proto ID Catalog 1 | . . 1 . Fabricator Hacks . | . . . . Repair Station Hacks . | . . . . Recycling Unit Hacks . | . . . . Scanalyzer . | . . . . Garrison Access Hacks . | . . . . Unauthorized Hacks 7 | . 7 . . Terminals 7 | . 7 . . Botnet 2 | . 2 . . Skim 5 | . 5 . . Fabricators . | . . . . Repair Stations . | . . . . Recycling Units . | . . . . Scanalyzers . | . . . . Garrison Access . | . . . . Data Cores Recovered . | . . . . Used . | . . . . Hacking Detections 8 | . 8 . . Full Trace Events . | . . . . Feedback Events . | . . . . Feedback Blocked . | . . . . Robot Schematics Acquired . | . . . . Robots Built . | . . . . Authchips . | . . . . Time . | . . . . Total Robot Build Rating . | . . . . Part Schematics Acquired . | . . . . Parts Built . | . . . . Authchips . | . . . . Time . | . . . . Total Part Build Rating . | . . . . Part Studies Acquired . | . . . . Parts Repaired . | . . . . Time . | . . . . Parts Recycled . | . . . . Recycled Matter . | . . . . Retrieved Matter . | . . . . Retrieved Components . | . . . . Parts Scanalyzed . | . . . . Part Schematics Acquired . | . . . . Parts Damaged . | . . . . Bothacking | -11 -10 -10 -7 ------------ Run | Yrd Mat Sub Rec Used RIF Installer . | . . . . Robots Hacked . | . . . . Non-combat . | . . . . Combat . | . . . . Robot Hacks Applied . | . . . . Relay Couplers Released . | . . . . Fabnet Peak Effective % . | . . . . Robots Rewired . | . . . . Allies Hacked . | . . . . Hacks Repelled . | . . . . Allies | -11 -10 -10 -7 -------- Run | Yrd Mat Sub Rec Total Allies . | . . . . Largest Group . | . . . . Highest-Rated Group . | . . . . Highest-Rated Ally . | . . . . Total Orders . | . . . . Ally Attacks . | . . . . Total Damage . | . . . . Kills . | . . . . Allies Corrupted . | . . . . Allies Melted . | . . . . X0-1V1 Amusement Gains 20 | . 5 15 . Average Entertainment 4 | . 5 4 . Good Acts 28 | . . 28 . Bad Acts 36 | . . 36 . Intel | -11 -10 -10 -7 ------- Run | Yrd Mat Sub Rec Active Infowar (turns) 1498 | 33 1383 82 . Seismic 1498 | 33 1383 82 . Robot Analysis Total . | . . . . Derelict Logs Recovered 3 | . . 3 . Drone Launches . | . . . . Drone Recoveries . | . . . . Exploration | -11 -10 -10 -7 ------------- Run | Yrd Mat Sub Rec Turns Passed 4060 | 149 1390 2521 . Spaces Moved 2181 | 61 719 1401 . Core 1 | 1 . . . Treads 1946 | 60 719 1167 . Legs . | . . . . Wheels 234 | . . 234 . Hover . | . . . . Flight . | . . . . Fastest Speed 50 | 50 160 110 . Average Speed 156 | 158 160 154 . Slowest Speed 240 | 160 240 240 . Overloaded Moves . | . . . . Propulsion Burnouts . | . . . . Robots Hopped . | . . . . Potential Cave-ins . | . . . . Cave-ins Triggered . | . . . . Exploration Rate (%) 43 | 4 96 72 1 Regions Visited 3 Branch Regions 2 Pre-discovered Areas 2 | . 1 1 . Known Exits Taken . | . . . . Unknown Exits Taken 3 | 1 1 1 . Scrap Searched 4 | . . 4 . Spaces Dug 9 | . 4 5 . Terrain Destroyed 175 | . 6 169 . Melee . | . . . . Projectile 13 | . 6 7 . AOE 162 | . . 162 . Terrain Rammed . | . . . . Walls Destroyed . | . . . . Machines Disabled . | . . . . Actions | -11 -10 -10 -7 --------- Run | Yrd Mat Sub Rec Total 2561 | 88 843 1630 . Wait 95 | 3 34 58 . Move 2178 | 60 718 1400 . Hop . | . . . . Pick Up 41 | 1 12 28 . Fast Attach 22 | 8 11 3 . Attach 13 | . 1 12 . Detach 7 | 1 2 4 . Swap 30 | . 9 21 . Drop 28 | 1 3 24 . Fire 138 | 12 46 80 . Melee . | . . . . Ram . | . . . . Kick . | . . . . Crush 9 | 2 7 . . Escape Stasis . | . . . . Rewire . | . . . . Trap . | . . . . Miscellaneous . | . . . . Route ------- -11/Scrapyard -10/Materials (discovered 5 exits: *Mat x3 / [*Min] / *Sub) -10/Subcaves (discovered 2 exits: *Mat / [*Rec]) -7/Recycling History --------- Turn | Location | Event 16 | -11/Scrapyard | Discovered new exit (range 13) 150 | -11/Scrapyard | Entered Materials 317 | -10/Materials | Build established: Mutant 401 | -10/Materials | Discovered new exit (range 12) 477 | -10/Materials | Discovered new exit (range 14) 825 | -10/Materials | Discovered new exit (range 16) 997 | -10/Materials | Discovered new exit (range 6) 1091 | -10/Materials | Identified exit to Materials 1187 | -10/Materials | Learned location of 1 exit from Recycling 1219 | -10/Materials | Learned 2 Storage zone layouts 1247 | -10/Materials | Learned location of 2 exits from Subcaves 1538 | -10/Materials | Prayed at D.C.S.S. Altar Unit 1540 | -10/Materials | Entered Subcaves 1540 | -10/Subcaves | Discovered new exit (range 15) 1541 | -10/Subcaves | Approached by a straggling Scientist 1541 | -10/Subcaves | Identified exit to Materials 1683 | -10/Subcaves | Disturbed a concealed Subdweller 1886 | -10/Subcaves | Learned Materials terminal intel 2016 | -10/Subcaves | Learned location of 1 exit from Materials 2185 | -10/Subcaves | A Subdweller sparked back to life 2185 | -10/Subcaves | A Subdweller sparked back to life 2185 | -10/Subcaves | A Subdweller sparked back to life 2312 | -10/Subcaves | Shifting Twisted Machinery released Sub. Optics 2329 | -10/Subcaves | Shifting Twisted Machinery released Barrage Gun 2339 | -10/Subcaves | A swath of the cavern ceiling suddenly collapsed 2394 | -10/Subcaves | Visited triangular shrine 2429 | -10/Subcaves | X0-1V1 sent hostile S-10 Pest (x4) 2887 | -10/Subcaves | Learned location of Zion (-7) 2887 | -10/Subcaves | Met a Zionite searching for "candidates" 2981 | -10/Subcaves | A swath of the cavern ceiling suddenly collapsed 3138 | -10/Subcaves | Shifting Twisted Machinery released Battle Cannon 3142 | -10/Subcaves | Shifting Twisted Machinery released Mak. Light Armor Plating 3150 | -10/Subcaves | Melee accuracy permanently improved by X0-1V1 (+6%; -60 max core) 3308 | -10/Subcaves | Weapon slot count temporarily expanded by X0-1V1 (+3) 3326 | -10/Subcaves | X0-1V1 activates XOMVISION 3438 | -10/Subcaves | System corruption reached 10% 3464 | -10/Subcaves | X0-1V1 sent hostile G-34 Mercenary (x5) 3507 | -10/Subcaves | X0-1V1 mutated your Weapon slot to Utility slot 3750 | -10/Subcaves | X0-1V1 mutated your Propulsion slot to Power slot 3757 | -10/Subcaves | X0-1V1 activates XOMVISION 3759 | -10/Subcaves | Visited 4L-MR0's lab 3774 | -10/Subcaves | Found Maxwheels 3785 | -10/Subcaves | Weapon slot count reverted to normal (-3) 3929 | -10/Subcaves | X0-1V1 mutated your Utility slot to Weapon slot 3932 | -10/Subcaves | X0-1V1 sent hostile S-10 Pest (x3) 3941 | -10/Subcaves | X0-1V1 caused items to flee you 3948 | -10/Subcaves | X0-1V1 collapsed Materials access 3986 | -10/Subcaves | X0-1V1 sent hostile S-10 Pest (x4) 4061 | -10/Subcaves | Entered Recycling 4061 | -7/Recycling | Self-destructed Last Messages --------------- S-10 Pest form resolidifies at new position. 03987_ Wheel destroyed. 03987_ X0-1V1 is interested. 03987_ Destroyed Wheel. 03987_ S-10 Pest destroyed. 03993_ Lgt. Ion Engine fries itself beyond repair. 03998_ Flight Unit fries itself beyond repair. 04001_ Sensor data returns to normal. 04013_ 28 Matter pulverized. Prototype Device suddenly appears amidst shimmering waves of color. 04027_ Prototype Device crushed and broken. 04030_ X0-1V1 is getting bored... Prototype Device suddenly appears amidst shimmering waves of color. LOCATION=UNKNOWN GOAL=ESCAPE Map ----- +----------------------------------------------------+ | | | ?????????????????????????????????? | | ?????????????????????????????????? | | ?????????????????????????????????? | | ?????????????????????????????????? | | ?????????????????????????????????? | | ?????????????????????????????????? | | ?????????????????????????????????? | | ?????????????????????????????????? | | ?????????????????????????????????? | | ?????????????????????????????????? | | ?????????????????????????????????? | | ?????????????????????????????????? | | ?????????????????????????????????? | | ?????????????????????????????????? | | ?????????????????????????????????? | | ?????????????????????????????????? | | ?????????????????????????????????? | | ?????????????????????????????????? | | ?????????????????????????????????? | | ?????????????????????????????????? | | ?????????????????????????????????? | | ?????????????????????????????????? | | ???????#####?????????????????????? | | ???????# #?????????????????????? | | ???????# @ #?????????????????????? | | ???????# #?????????????????????? | | ???????# #?????????????????????? | | ???????# #?????????????????????? | | ???????# #?????????????????????? | | ???????# #?????????????????????? | | ???????# !?????????????????????? | | ???????? !?????????????????????? | | ?????????????????????????????????? | | ?????????????????????????????????? | | ?????????????????????????????????? | | ?????????????????????????????????? | | ?????????????????????????????????? | | ?????????????????????????????????? | | ?????????????????????????????????? | | ?????????????????????????????????? | | ?????????????????????????????????? | | ?????????????????????????????????? | | ?????????????????????????????????? | | ?????????????????????????????????? | | ?????????????????????????????????? | | ?????????????????????????????????? | | ?????????????????????????????????? | | ?????????????????????????????????? | | ?????????????????????????????????? | +----------------------------------------------------+ Best States ------------- Heat Dissipation 25 Energy Generation 10 Energy Capacity 1300 Matter Stores 383 Matter Capacity 1100 Sight Range 22 Terrain Scan Density 10 Armor Coverage 250 Evasion (%) 40 Recoil Reduction 2 Item Schematics ----------------- None Robot Schematics ------------------ None Fabricated ------------ Nothing Repaired ---------- Nothing Studied --------- None Alien Tech Used ----------------- None Achievements -------------- None Challenges ------------ None Game ------ Seed ActuatorTachyonMegatreads Manual? 0 Play Time 00:36:32 Cumulative 484.0 hours Start 2026.09.01 @ 01:49:29 End 2026.09.01 @ 02:27:58 Sessions 5 Manual Loads 0 Difficulty Rogue Special Mode None Game No. 372 Rogue 372 Adventurer 0 Explorer 0 Win Type - Total 8 Types 6/0/0/0/0/0/0/2/0/0 Lore% 72 Gallery% 72 Achievement% 60 Wizard Run 0 Options --------- Layout 1 ASCII 0 Keyboard 0 Movement Arrows Keybinds 0 Fullscreen 1 Font 36/Smallcaps Map View 50x40 Zoom Use 0% Tactical HUD 1 Map Filters NONE Filters NONE Steam 1 RUN: 78f682e4-e82d-4317-b290-32076a7d1043